Cogmind - Beta 13 @@@ ROGUE MODE // 2024.05.04 @ 09:25:09 Player: Bace Troncons Result: Smashed by cave-in Performance ------------- Evolutions (0) 0 Regions Visited (4) 800 Robots Destroyed (23) 115 Value Destroyed (479) 479 Prototype IDs (0) 0 Alien Tech Used (0) 0 Bonus (-119) -119 TOTAL SCORE: 1275 Bonus ------- Friendly Fire -119 Cogmind --------- Core Integrity 0/250 Matter 274/300 Energy 88/100 System Corruption 4% Temperature Cool (0) Movement Core (450) Ox8 Location -9/Mines Parts ------- > --- POWER (1) -------- (None) > --- PROPULSION (2) --- (None) > --- UTILITY (2) ------ Large Storage Unit Sensor Array > --- WEAPON (2) ------- Assault Rifle Grenade Launcher > --- INVENTORY (15) --- Light Ion Engine Weight Redist. System Structural Scanner Visual Processing Unit Signal Interpreter Terrain Scanner Seismic Detector ECM Suite Light Armor Plating Light Armor Plating Assault Rifle Rocket Launcher Datajack Hammer Peak State ------------ > --- POWER ------------ Ion Engine > --- PROPULSION ------- Light Treads Light Treads > --- UTILITY ---------- Large Storage Unit Sensor Array > --- WEAPON ----------- Assault Rifle Rocket Launcher > --- INVENTORY -------- Light Ion Engine Light Treads Weight Redist. System Structural Scanner Visual Processing Unit Signal Interpreter Terrain Scanner Seismic Detector ECM Suite Light Armor Plating Light Armor Plating Assault Rifle Grenade Launcher Datajack Hammer [Rating: 9] Favorites ----------- Power Ion Engine Engine Ion Engine Propulsion Light Treads Treads Light Treads Utility Sensor Array Device Sensor Array Storage Large Storage Unit Weapon Assault Rifle Ballistic Gun Assault Rifle Launcher Grenade Launcher Impact Weapon Hammer Build | -11 -10 -10 -10 -9 ------- Run | Yrd Mat Min Exi Min Slots Evolved . | . . . . . Power . | . . . . . Propulsion . | . . . . . Utility . | . . . . . Weapon . | . . . . . Parts Attached 19 | 6 7 4 1 1 Power 1 | 1 . . . . Engine 1 | 1 . . . . Core . | . . . . . Reactor . | . . . . . Propulsion 3 | 2 . . 1 . Treads 3 | 2 . . 1 . Leg . | . . . . . Wheel . | . . . . . Hover . | . . . . . Flight . | . . . . . Utility 3 | 1 2 . . . Device 1 | . 1 . . . Storage 2 | 1 1 . . . Processor . | . . . . . Hackware . | . . . . . Protection . | . . . . . Artifact . | . . . . . Weapon 12 | 2 5 4 . 1 Energy Gun . | . . . . . Energy Cannon . | . . . . . Ballistic Gun 7 | 2 3 2 . . Ballistic Cannon . | . . . . . Launcher 4 | . 1 2 . 1 Special Weapon . | . . . . . Impact Weapon 1 | . 1 . . . Slashing Weapon . | . . . . . Piercing Weapon . | . . . . . Special Melee Weapon . | . . . . . Unidentified Prototypes . | . . . . . Parts Lost 4 | . . 1 . 3 Power 1 | . . . . 1 Propulsion 3 | . . 1 . 2 Utility . | . . . . . Weapon . | . . . . . Highest Loss Streak 3 | . . 1 . 3 To Critical Strikes . | . . . . . Average Slot Usage (%) 97 | . 99 93 100 100 Engine 14 | . 14 14 14 14 Treads 26 | . 28 22 28 28 Device 13 | . 13 14 14 14 Storage 14 | . 14 14 14 14 Ballistic Gun 25 | . 24 25 28 28 Impact Weapon 1 | . 3 . . . Naked Turns . | . . . . . Heaviest Build 32 | 14 30 32 30 30 Greatest Support 40 | 40 40 40 40 40 Greatest Overweight (x) 1 | . . 1 . . Average Overweight (x) . | . . . . . Largest Inventory Capacity 15 | 8 15 15 15 15 Average Capacity 13 | 7 10 15 15 15 Most Carried 15 | 5 15 15 14 14 Average Carried 11 | 2 9 14 14 14 Final Capacity 15 | 8 15 15 15 15 Final Carried 15 | 4 15 15 14 14 Class Distribution -------------------- 100% | Mutant Dominant Class ---------------- Mutant | -10/Materials Mutant | -10/Mines Mutant | -10/Exiles Mutant | -9/Mines Resources | -11 -10 -10 -10 -9 ----------- Run | Yrd Mat Min Exi Min Matter Collected 850 | 257 362 160 . 71 Remotely . | . . . . . Salvage Created 507 | . 405 79 . 23 Parts 39 | . 28 9 . 2 Haulers Intercepted 1 | . 1 . . . Recyclers Shooed . | . . . . . Parts Field Recycled . | . . . . . Retrieved Matter . | . . . . . Parts Self-Destructed . | . . . . . Prevented . | . . . . . Kills | -11 -10 -10 -10 -9 ------- Run | Yrd Mat Min Exi Min Combat Hostiles Destroyed 14 | . 7 7 . . Guns 7 | . 6 1 . . AOE 7 | . 1 6 . . Classes Destroyed 8 | . 7 . . 1 Tunneler 1 | . 1 . . . Hauler 1 | . 1 . . . Recycler 1 | . 1 . . . Operator 2 | . 2 . . . Watcher 3 | . 3 . . . Swarmer 7 | . 1 6 . . Grunt 7 | . 6 1 . . Guerrilla 1 | . . . . 1 Best Kill Streak 3 | . 3 3 . . Combat Bots Only 3 | . 2 3 . . Max Kills in Single Turn 3 | . 1 3 . 1 Gunslinging . | . . . . . Exploded 3 | . 1 3 . . Melee . | . . . . . Uniques/NPCs Destroyed . | . . . . . Combat | -11 -10 -10 -10 -9 -------- Run | Yrd Mat Min Exi Min Hostile Shots Fired 72 | . 41 29 . 2 Missed 17 | . 10 7 . . Damage Taken 991 | . 326 289 . 376 Core 293 | . 55 72 . 166 Absorbed by Shields . | . . . . . Core Remaining (%) 100 | 100 . . . . Volleys Fired 67 | . 49 16 . 2 Largest 2 | . 2 2 . 2 Hottest 53 | . 50 53 . 50 Shots Fired 127 | . 97 26 . 4 Gun 110 | . 93 15 . 2 Cannon . | . . . . . Launcher 17 | . 4 11 . 2 Special . | . . . . . Kinetic 110 | . 93 15 . 2 Thermal . | . . . . . Explosive 17 | . 4 11 . 2 Electromagnetic . | . . . . . Robot Hit Streak 10 | . 10 3 . 5 Robot Miss Streak 4 | . 4 3 . . Penetration Max . | . . . . . Secondary Targets . | . . . . . Shots Hit Robots 70 | . 60 6 . 4 Core Hits 41 | . 28 9 . 4 Critical Kills 1 | . . 1 . . Critical Parts Destroyed . | . . . . . Critical Strikes 1 | . . 1 . . Destroy 1 | . . 1 . . Melee Attacks 4 | . 4 . . . Impact 4 | . 4 . . . Slashing . | . . . . . Piercing . | . . . . . Sneak Attacks 1 | . 1 . . . Combat Hostiles . | . . . . . Follow-up Attacks . | . . . . . Damage Inflicted 1507 | . 1064 384 . 59 Guns 847 | . 756 66 . 25 Cannons . | . . . . . Explosions 561 | . 209 318 . 34 Melee 99 | . 99 . . . Ramming . | . . . . . Kinetic 847 | . 756 66 . 25 Thermal . | . . . . . Explosive 561 | . 209 318 . 34 Electromagnetic . | . . . . . Impact 99 | . 99 . . . Slashing . | . . . . . Piercing . | . . . . . Highest Corruption . | . . . . . Average Corruption . | . . . . . Corruption Purged . | . . . . . Corruption Blocked . | . . . . . Overload Shots . | . . . . . Overflow Damage 30 | . . 30 . . Projectiles . | . . . . . Explosions 30 | . . 30 . . Melee . | . . . . . Knockbacks . | . . . . . Impact . | . . . . . Kinetic . | . . . . . Secondary . | . . . . . Self-Inflicted Damage 60 | . . 60 . . Shots 2 | . . 2 . . Rammed . | . . . . . Targets Rammed . | . . . . . Kicked . | . . . . . Crushed . | . . . . . Highest Temperature 8 | . 6 8 . . Average Temperature 2 | . 3 2 . . Received Heat Transfer 210 | . 138 72 . . Siege Activations . | . . . . . Robots Corrupted . | . . . . . Combat Hostiles . | . . . . . Parts Fried . | . . . . . Impact Corruptions . | . . . . . Robots Melted . | . . . . . Combat Hostiles . | . . . . . Parts Melted . | . . . . . Heat Transferred . | . . . . . Parts Sabotaged . | . . . . . Parts Stolen . | . . . . . Parts Stripped . | . . . . . Power Chain Reactions . | . . . . . Alert | -11 -10 -10 -10 -9 ------- Run | Yrd Mat Min Exi Min Peak Influence 166 | . 166 150 . 1 Initial 2 | . . 2 . . Average 49 | . 32 85 . . Maximum Alert Level . | . . . . . Low Security (%) 100 | 100 100 100 . 100 Level 1 . | . . . . . Level 2 . | . . . . . Level 3 . | . . . . . Level 4 . | . . . . . Level 5 . | . . . . . High Security . | . . . . . Max Security . | . . . . . Squads Dispatched 1 | . 1 . . . Investigation . | . . . . . Extermination . | . . . . . Reinforcement 1 | . 1 . . . Assault . | . . . . . Garrison . | . . . . . Intercept . | . . . . . Searches Triggered . | . . . . . Construction Impeded . | . . . . . Haulers Reinforced . | . . . . . Active Scanning Responses . | . . . . . Cargo Convoy Interrupts . | . . . . . Stealth | -11 -10 -10 -10 -9 --------- Run | Yrd Mat Min Exi Min Distress Signals . | . . . . . Communications Jammed . | . . . . . Distress Signals . | . . . . . Times Spotted 28 | . 19 8 . 1 Peak Tracking Total 3 | . 3 3 . 1 Tactical Retreats . | . . . . . Traps | -11 -10 -10 -10 -9 ------- Run | Yrd Mat Min Exi Min Traps Triggered . | . . . . . Indirectly . | . . . . . Trap Hack Attempts . | . . . . . Triggered . | . . . . . Disarmed . | . . . . . Reprogrammed . | . . . . . Reused . | . . . . . Traps Extracted . | . . . . . Installed . | . . . . . Triggered . | . . . . . Machines | -11 -10 -10 -10 -9 ---------- Run | Yrd Mat Min Exi Min Machines Disabled 5 | . . 5 . . Max in Single Turn 4 | . . 4 . . Machines Repaired . | . . . . . Machines Dismantled . | . . . . . Machines Sabotaged . | . . . . . Overloaded Fab Kills . | . . . . . Hacking | -11 -10 -10 -10 -9 --------- Run | Yrd Mat Min Exi Min Machines Accessed 7 | . 6 . 1 . Terminals 5 | . 5 . . . Fabricators . | . . . . . Repair Stations . | . . . . . Recycling Units 1 | . 1 . . . Scanalyzers . | . . . . . Garrison Access . | . . . . . Total Hacks 13 | . 12 . 1 . Successful 3 | . 2 . 1 . Failed 10 | . 10 . . . Catastrophic 4 | . 4 . . . Database Lockouts . | . . . . . Manual 2 | . 2 . . . Terminals 11 | . 11 . . . Fabricators . | . . . . . Repair Stations . | . . . . . Recycling Units 1 | . 1 . . . Scanalyzers . | . . . . . Garrison Access . | . . . . . Terminal Hacks 3 | . 2 . 1 . Record 1 | . . . 1 . Branch Access Points 1 | . 1 . . . Locate Traps 1 | . 1 . . . Fabricator Hacks . | . . . . . Repair Station Hacks . | . . . . . Recycling Unit Hacks . | . . . . . Scanalyzer . | . . . . . Garrison Access Hacks . | . . . . . Unauthorized Hacks . | . . . . . Terminals . | . . . . . Fabricators . | . . . . . Repair Stations . | . . . . . Recycling Units . | . . . . . Scanalyzers . | . . . . . Garrison Access . | . . . . . Data Cores Recovered 1 | . 1 . . . Used . | . . . . . Hacking Detections 6 | . 6 . . . Full Trace Events . | . . . . . Feedback Events . | . . . . . Feedback Blocked . | . . . . . Robot Schematics Acquired . | . . . . . Robots Built . | . . . . . Authchips . | . . . . . Time . | . . . . . Total Robot Build Rating . | . . . . . Part Schematics Acquired . | . . . . . Parts Built . | . . . . . Authchips . | . . . . . Time . | . . . . . Total Part Build Rating . | . . . . . Parts Repaired . | . . . . . Time . | . . . . . Parts Recycled . | . . . . . Recycled Matter . | . . . . . Retrieved Matter . | . . . . . Retrieved Components . | . . . . . Parts Scanalyzed . | . . . . . Part Schematics Acquired . | . . . . . Parts Damaged . | . . . . . Bothacking | -11 -10 -10 -10 -9 ------------ Run | Yrd Mat Min Exi Min Used RIF Installer . | . . . . . Robots Hacked . | . . . . . Non-combat . | . . . . . Combat . | . . . . . Robot Hacks Applied . | . . . . . Relay Couplers Released . | . . . . . Fabnet Peak Effective % . | . . . . . Robots Rewired . | . . . . . Allies Hacked . | . . . . . Hacks Repelled . | . . . . . Allies | -11 -10 -10 -10 -9 -------- Run | Yrd Mat Min Exi Min Total Allies 1 | . . 1 . . Largest Group 1 | . . 1 1 . Highest-Rated Group 31 | . . 31 31 . Highest-Rated Ally 31 | . . 31 31 . Total Orders . | . . . . . Ally Attacks . | . . . . . Total Damage . | . . . . . Kills . | . . . . . Allies Corrupted . | . . . . . Allies Melted . | . . . . . Intel | -11 -10 -10 -10 -9 ------- Run | Yrd Mat Min Exi Min Robot Analysis Total . | . . . . . Derelict Logs Recovered 1 | . . 1 . . Drone Launches . | . . . . . Drone Recoveries . | . . . . . Exploration | -11 -10 -10 -10 -9 ------------- Run | Yrd Mat Min Exi Min Turns Passed 3326 | 84 1434 958 698 152 Spaces Moved 1813 | 46 758 484 436 89 Core 2 | 2 . . . . Treads 1811 | 44 758 484 436 89 Legs . | . . . . . Wheels . | . . . . . Hover . | . . . . . Flight . | . . . . . Fastest Speed 50 | 50 160 160 160 160 Average Speed 167 | 155 160 187 160 160 Slowest Speed 240 | 160 160 240 160 160 Overloaded Moves . | . . . . . Propulsion Burnouts . | . . . . . Robots Hopped . | . . . . . Cave-ins Triggered 1 | . . . . 1 Exploration Rate (%) 61 | 5 91 93 88 29 Regions Visited 4 Branch Regions 3 Pre-discovered Areas 1 | . . 1 . . Known Exits Taken 1 | . 1 . . . Unknown Exits Taken 3 | 1 . 1 1 . Scrap Searched 3 | . . 1 . 2 Spaces Dug 26 | . 1 25 . . Terrain Destroyed 92 | . 20 69 . 3 Melee 1 | . 1 . . . Projectile . | . . . . . AOE 91 | . 19 69 . 3 Terrain Rammed . | . . . . . Walls Destroyed . | . . . . . Machines Disabled . | . . . . . Actions | -11 -10 -10 -10 -9 --------- Run | Yrd Mat Min Exi Min Total 1972 | 56 874 509 436 97 Wait 48 | . 39 4 . 5 Move 1809 | 45 757 483 435 89 Hop . | . . . . . Pick Up 20 | 5 14 1 . . Fast Attach 6 | 5 1 . . . Attach 2 | 1 . . 1 . Detach . | . . . . . Swap 11 | . 6 4 . 1 Drop 5 | . 4 1 . . Fire 67 | . 49 16 . 2 Melee 4 | . 4 . . . Ram . | . . . . . Kick . | . . . . . Crush . | . . . . . Escape Stasis . | . . . . . Rewire . | . . . . . Trap . | . . . . . Miscellaneous . | . . . . . Route ------- -11/Scrapyard -10/Materials (discovered 3 exits: [*Mat x2] / *Min) -10/Mines (discovered 3 exits: [*Mat x2] / *Exi) -10/Exiles (discovered 2 exits: [*Min x2]) -9/Mines History --------- Turn | Location | Event 27 | -11/Scrapyard | Discovered new exit (range 16) 85 | -11/Scrapyard | Entered Materials 185 | -10/Materials | Identified exit to Mines 303 | -10/Materials | Build established: Mutant 338 | -10/Materials | Discovered new exit (range 11) 1277 | -10/Materials | Discovered new exit (range 13) 1519 | -10/Materials | Entered Mines 1612 | -10/Mines | Discovered new exit (range 10) 1700 | -10/Mines | Discovered new exit (range 5) 1824 | -10/Mines | Received a Rocket Launcher from a helpful Derelict 2066 | -10/Mines | Core integrity fell below 50% 2398 | -10/Mines | Received a Mining Laser from a helpful Derelict 2467 | -10/Mines | Deemed a non-threat by the Exiles lab entrance 2467 | -10/Mines | Discovered new exit (range 5) 2477 | -10/Mines | Entered Exiles 2477 | -10/Exiles | Found Exiles lab abandoned 2477 | -10/Exiles | Accompanied by 1 ally 2510 | -10/Exiles | Discovered new exit (range 14) 2808 | -10/Exiles | Discovered new exit (range 14) 3175 | -10/Exiles | Entered Mines 3253 | -9/Mines | Assembled infested the area 3258 | -9/Mines | Assisted by a Guerilla fighting off Assembled 3328 | -9/Mines | Crushed by falling debris 3328 | -9/Mines | Smashed by cave-in Last Messages --------------- 03183_ Acquired 22 matter. 03187_ Searching scrap... 03187_ Found 13 Matter. 03187_ Found 36 Matter. 03188_ Acquired 36 matter. 03188_ Acquired 13 matter. 03253_ ALERT: Infestation in the mines, dispatching Demolisher response squad. 03321_ D-53 Grenadier suffers critical hit (Destroy). 03321_ D-53 Grenadier destroyed. 03323_ Ion Engine destroyed. 03324_ J5-54K(h) destroyed. 03327_ T-07 Excavator destroyed. 03328_ The unstable cave ceiling collapses. 03328_ Crushed by falling debris. 03328_ Lgt. Treads destroyed. 03328_ System corrupted by crushing effect (+1). 03328_ Lgt. Treads destroyed. 03328_ System corrupted by crushing effect (+3). Map ----- +----------------------------------------------------+ | ?????????????????????????????????????????????????? | | ?????????????????????????????????????????????????? | | ?????????????????????????????????????????????????? | | ???????????????????????????????????????????????? ? | | ???????????????????????????????????????????????? ? | | ???????????????????????????????????????????????? ? | | ?????????????????????????????????? ??????????## ? | | ????????????????????????????????? ????????## ? | | ????????????????????????????????? ??????#### ? | | ????????????????????????????????? ??????? ? | | ????????????????????????????????? #??####?? ? | | ????????????????????????????????? ### ??? ? | | ????????????????????????????????? ???# ? | | ????????????????????????????????? ????# #? | | ???????????????????????????????## ?????# ## | | ??????????????????????????????## ??????## | | ?????????????????????????????## #???????# | | ????????????????????????????## ?????????# | | ??????????????????????????### #??????????# | | ?????????????????????#???## #??????????# # | | ?????????????????????# ### #??????????##### | | ?????????????????????# # # ### ##### #????????# | | ?????????????????????# ## #????????# | | ??????????????????## # ## ##### #????##### | | ??????????????????# = ## ###?? ?????# | | ??????????????????# @ ## #?? #????# #### | | ?????????????????# ##### #?? #????# #??? | | ?????????????????# ! ##### ### ##???# #??? | | ?????????????????# = # ## ##??# #??? | | ?????????????????# d ##### """" ##?# #??? | | ????????????????# % #???# """" #?# #??? | | ???????????????r ##???## """" #?# #??? | | ????????????? #??????## #?# #??? | | ????????????? #????????## ### #??? | | ????????????? #??????????# #??? | | ?????????????? ???????????# # ##??? | | ??????????????# ???????????# ## #???? | | ????????????????% ????????????## ###### #???? | | ?????????????????? ?????????????## #????# #???# | | ???????????????????????????????????# #????# ##### | | ???????????????????????????????????# #????# | | ???????????????????????????????????# #????###### | | ???????????????????????????????????# #?#####???# | | ???????????????????????????????????# #?# ##?## | | ???????????????????????????????????# ### ### | | ???????????????????????????????????# | | ???????????????????????????????????# | | ???????????????????????????????????####### | | ?????????????????????????????????????????##### # | | ?????????????????????????????????????????????##### | +----------------------------------------------------+ Best States ------------- Heat Dissipation 25 Energy Generation 10 Energy Capacity 250 Matter Stores 300 Matter Capacity 300 Sight Range 16 Robot Scan Range 14 Terrain Scan Density 10 Evasion (%) 40 Recoil Reduction 2 Item Schematics ----------------- None Robot Schematics ------------------ None Fabricated ------------ Nothing Alien Tech Used ----------------- None Achievements -------------- None Challenges ------------ None Game ------ Seed BiomechanicalArchitectEngine Manual? 0 Play Time 00:20:14 Cumulative 53.5 hours Start 2024.05.04 @ 08:57:00 End 2024.05.04 @ 09:25:09 Sessions 1 Manual Loads 0 Difficulty Rogue Special Mode None Game No. 82 Rogue 82 Adventurer 0 Explorer 0 Win Type - Total 0 Types 0/0/0/0/0/0/0/0/0 Lore% 27 Gallery% 35 Achievement% 27 Wizard Run 0 Options --------- Layout 1 ASCII 0 Keyboard 1 Movement Numpad Keybinds 0 Fullscreen 1 Font 24/Smallcaps Map View 50x35 Zoom Use 0% Tactical HUD 1 Map Filters NONE Filters NONE Steam 1 RUN: 97f8b5cc-6dce-435a-8b41-b9a7bc77d379